bitfinex/quotes_ETHUSD_20251118
["timestamp","ask_amount","ask_price","bid_price","bid_amount"]
[1763430781783,0.9339,3027.1,3027.0,0.001]
[1763430783915,0.4711,3027.1,3027.0,0.001]
[1763430784376,0.9339,3027.1,3027.0,0.001]
[1763430786785,0.4711,3027.1,3027.0,0.001]
[1763430786981,0.002,3027.8,3027.0,0.1647]
[1763430787297,0.4609,3027.7,3027.3,1.78350375]
[1763430787604,0.002,3027.8,3027.3,1.78350375]
[1763430787807,0.002,3027.8,3027.4,2.18900775]
[1763430787983,0.002,3027.8,3027.5,0.21890078]
[1763430788183,0.4961,3027.5,3027.4,1.78350375]
[1763430788495,0.002,3027.8,3027.3,1.78350375]
[1763430788800,0.002,3027.8,3027.4,1.78350375]
[1763430788981,0.4629,3027.8,3027.3,1.78350375]
[1763430789782,0.4629,3027.8,3027.4,1.78350375]
[1763430790282,0.4961,3027.5,3027.0,0.001]
[1763430790487,0.4961,3027.1,3027.0,0.001]
[1763430791114,0.957,3027.1,3027.0,0.001]
[1763430792921,1.86399264,3027.1,3027.0,0.001]
[1763430798108,1.86399264,3027.1,3025.9,1.78350375]
[1763430798411,0.4961,3026.0,3025.9,1.78350375]
[1763430798611,0.4961,3026.0,3025.4,0.1637]
[1763430798612,0.4961,3026.0,3025.8,1.78350375]
[1763430798819,0.17288337,3025.1,3025.0,2.37524351]
[1763430799019,1.55257601,3025.1,3024.6,0.09083496]
[1763430799184,0.4647,3024.7,3024.6,0.09083496]
[1763430799390,0.9316,3024.7,3024.6,0.09083496]
[1763430799596,0.4647,3024.7,3024.6,0.09083496]
[1763430799797,0.9316,3024.7,3024.6,0.09083496]
[1763430804794,0.4647,3024.7,3024.6,0.09083496]
[1763430805623,0.9316,3024.7,3024.6,0.09083496]
[1763430807192,0.9316,3024.7,3023.4,0.1667]
[1763430807392,0.9316,3024.7,3022.1,0.1938]
[1763430807393,0.90699264,3023.4,3022.1,0.1938]
[1763430807604,0.90699264,3023.4,3022.2,0.4511]
[1763430807834,1.37389264,3023.4,3022.2,0.4511]
[1763430808194,0.4669,3023.3,3022.1,0.1938]
[1763430808423,0.4669,3023.3,3022.2,0.4511]
[1763430808630,1.13445001,3024.6,3022.2,0.4511]
[1763430808631,0.4669,3023.7,3022.3,0.03308738]
[1763430808831,0.4669,3023.7,3022.2,0.4511]
[1763430809016,0.4669,3023.7,3022.3,0.405504]
[1763430809323,0.4669,3023.7,3022.2,0.4511]
[1763430809503,0.4669,3023.7,3022.2,0.4011]
[1763430811327,0.4669,3023.7,3022.3,0.405504]
[1763430811701,0.4669,3023.7,3022.5,0.405504]
[1763430811909,0.4669,3023.7,3022.6,0.4511]
[1763430814540,0.4669,3024.2,3022.7,0.405504]
[1763430814726,0.4669,3024.5,3023.6,0.4971]
[1763430815050,6.42850244,3024.9,3023.6,0.4971]
[1763430815051,0.4669,3024.8,3023.6,0.4971]
[1763430815367,0.4669,3024.8,3023.7,0.4511]
[1763430816014,0.1909,3025.0,3023.8,0.405504]
[1763430816252,0.6506,3025.0,3023.8,0.405504]
[1763430816457,0.6506,3025.0,3023.9,0.4543]
[1763430816758,0.002,3025.4,3024.9,0.6724]
[1763430816914,0.002,3025.4,3025.0,0.859804]
[1763430817214,0.002,3025.4,3024.9,0.6724]
[1763430817415,0.002,3025.4,3025.3,0.4896]
[1763430817821,0.002,3025.4,3025.3,0.9439]
[1763430818260,0.002,3025.4,3025.3,0.4896]
[1763430818665,0.002,3025.4,3025.3,1.349404]
[1763430819542,0.002,3025.8,3025.4,0.405504]
[1763430819753,0.002,3025.8,3025.7,0.4896]
[1763430819965,0.002,3025.8,3025.7,0.9439]
[1763430821062,0.002,3025.8,3025.7,1.349404]
[1763430822445,0.002,3025.8,3025.7,0.9439]
[1763430822647,0.002,3025.8,3025.7,0.4896]
[1763430823036,0.002,3025.8,3025.4,0.405504]
[1763430823237,0.002,3025.8,3024.9,0.1828]
[1763430823238,0.002,3025.8,3025.7,0.895104]
[1763430823452,0.002,3025.8,3025.7,0.4896]
[1763430823656,0.002,3025.8,3025.3,0.405504]
[1763430824061,0.002,3025.8,3025.4,0.4543]
[1763430824338,0.002,3025.8,3025.7,0.4896]
[1763430824657,0.002,3025.8,3025.4,0.4543]
[1763430824838,0.4752595,3025.7,3024.9,0.1828]
[1763430825340,0.4752595,3025.7,3024.6,0.4543]
[1763430825540,0.4752595,3025.7,3024.7,0.03306113]
[1763430825959,0.4752595,3025.7,3024.8,0.4543]
[1763430826360,0.0155595,3025.7,3024.8,0.4543]
[1763430826640,0.0155595,3025.7,3024.9,0.405504]
[1763430827277,0.4597,3025.6,3024.5,0.1828]
[1763430827489,0.4597,3025.6,3024.5,0.6371]
[1763430827693,0.0155595,3025.7,3024.6,0.43856622]
[1763430827862,0.0155595,3025.7,3024.7,0.03306113]
[1763430828061,0.0155595,3025.7,3024.6,0.859804]
[1763430828471,0.0155595,3025.7,3024.8,0.405504]
[1763430828670,0.0155595,3025.7,3024.8,0.4543]
[1763430828992,0.002,3026.1,3024.9,0.03305894]
[1763430829181,0.002,3026.1,3024.8,0.48736003]
[1763430829387,0.002,3026.1,3024.8,0.4543]
[1763430829587,0.17290084,3026.0,3024.8,0.4543]
[1763430830664,0.17290084,3026.0,3024.5,0.1828]
[1763430830897,0.4597,3025.9,3024.5,0.6371]
[1763430831196,0.4597,3025.9,3024.5,0.1828]
[1763430831400,0.4597,3025.9,3024.5,0.6371]
[1763430832996,0.4597,3025.9,3024.6,0.405504]
[1763430833209,0.4597,3025.9,3024.6,0.859804]
[1763430833387,0.4597,3025.9,3024.6,0.4543]
[1763430833766,1.36669264,3025.9,3024.5,0.1828]
[1763430834168,0.4597,3025.8,3024.5,0.1828]
[1763430835101,0.4597,3025.8,3024.3,0.4543]
[1763430835613,0.4597,3025.8,3024.4,0.4385684]
[1763430835792,0.4597,3025.8,3024.6,0.405504]
[1763430836163,0.4597,3025.8,3024.5,0.4543]
[1763430836367,0.4597,3025.8,3024.3,0.4543]
[1763430836999,0.4597,3025.8,3024.4,0.405504]
[1763430837398,0.4597,3025.8,3024.6,0.405504]
[1763430837770,0.4597,3025.8,3024.6,0.4543]
[1763430838223,6.60140328,3026.0,3024.6,0.4543]
[1763430838224,0.17290084,3026.0,3024.7,0.405504]
[1763430838669,0.17290084,3026.0,3024.9,0.405504]
[1763430838869,0.17290084,3026.0,3025.0,0.4543]
[1763430839690,0.17290084,3026.0,3025.1,0.405504]
[1763430840005,0.002,3026.1,3025.1,0.405504]
[1763430840166,0.002,3026.1,3025.0,0.4543]
[1763430840167,0.002,3026.1,3025.2,0.4543]
[1763430840669,0.4597,3026.0,3024.8,0.405504]
[1763430840882,1.36669264,3026.0,3024.3,0.405504]
[1763430841076,0.4597,3025.9,3024.5,0.405504]
[1763430841477,0.4597,3025.9,3024.6,0.405504]
[1763430841684,0.4597,3025.9,3024.2,0.4543]
[1763430842478,0.4597,3025.9,3024.1,0.1828]
[1763430842479,0.90699264,3025.5,3024.1,0.1828]
[1763430842786,0.4597,3025.4,3024.2,0.4543]
[1763430844412,0.4597,3025.4,3023.6,0.94689264]
[1763430844413,0.4597,3025.4,3023.8,0.4543]
[1763430844610,0.4597,3025.4,3023.8,0.74124435]
[1763430844816,0.4597,3025.4,3023.8,0.4543]
[1763430845001,0.4597,3025.4,3023.9,0.4543]
[1763430846492,0.4597,3025.4,3024.1,0.001]
[1763430847010,0.4597,3025.4,3024.2,0.1948]
[1763430847332,0.465,3025.8,3024.3,0.405504]
[1763430847479,0.465,3025.9,3024.4,0.4508]
[1763430847882,0.90699264,3025.6,3024.2,0.1948]
[1763430848305,0.465,3025.5,3024.2,0.6456]
[1763430849619,0.465,3025.5,3024.1,0.001]
[1763430850113,0.465,3025.5,3024.1,0.1958]
[1763430853641,0.1938,3024.6,3024.1,0.001]
[1763430854092,0.6588,3024.6,3024.1,0.001]
[1763430854903,0.1264,3024.2,3024.1,0.001]
[1763430855103,0.00934288,3023.7,3023.3,0.6456]
[1763430855330,0.00934288,3023.7,3023.3,0.94768435]
[1763430855542,0.00934288,3023.7,3023.4,0.4508]
[1763430855825,0.00934288,3023.7,3023.6,0.4696]
[1763430856988,0.00934288,3023.7,3023.6,0.8183141]
[1763430857827,0.00934288,3023.7,3023.6,1.2238181]
[1763430858220,0.00934288,3023.7,3023.6,3.59906161]
[1763430858519,0.00934288,3023.7,3023.6,1.5870318]
[1763430858730,0.00934288,3023.7,3023.6,1.2238181]
[1763430859229,0.00934288,3023.7,3023.6,3.60377374]
[1763430859729,0.00934288,3023.7,3023.6,1.2238181]
[1763430860031,0.00934288,3023.7,3023.6,3.60410828]
[1763430860753,0.17294822,3024.5,3023.7,0.405504]
[1763430860927,0.17294822,3024.5,3023.9,0.405504]
[1763430861300,0.17294822,3024.5,3023.9,0.891004]
[1763430861496,0.1394,3024.9,3023.8,0.36041083]
[1763430861701,0.484,3024.8,3023.7,0.405504]
[1763430861903,0.484,3024.8,3023.7,0.891004]
[1763430862435,0.1394,3024.9,3023.9,0.405504]
[1763430862605,0.484,3025.1,3023.9,0.405504]
[1763430862805,0.1938,3025.3,3024.1,0.405504]
[1763430863208,0.6778,3025.3,3024.2,0.1964]
[1763430863410,0.6778,3025.3,3024.0,0.405504]
[1763430863609,0.484,3025.2,3023.9,0.405504]
[1763430863816,0.484,3025.2,3024.1,0.1964]
[1763430864141,0.484,3025.2,3023.8,2.78579418]
[1763430864142,1.39099264,3025.2,3023.8,2.78579418]
[1763430864346,1.39099264,3025.2,3023.9,0.31929196]
[1763430864558,0.484,3025.1,3023.9,0.80479196]
[1763430865445,0.484,3025.1,3023.9,0.31929196]
[1763430865651,0.002,3024.5,3024.0,0.4855]
[1763430865812,0.002,3024.5,3024.1,0.405504]
[1763430866019,0.002,3024.5,3024.4,1.054204]
[1763430866250,0.002,3024.9,3024.5,0.405504]
[1763430866549,0.002,3024.9,3024.8,4.28726906]
[1763430866746,0.002,3025.2,3024.9,0.405504]
[1763430866945,0.002,3025.2,3024.9,3.86577642]
[1763430867250,0.002,3025.2,3025.1,0.857804]
[1763430867626,0.002,3025.2,3025.1,1.343304]
[1763430868517,0.002,3026.0,3025.1,1.343304]
[1763430868851,0.002,3026.0,3025.0,0.52250691]
[1763430868852,0.002,3026.0,3025.9,0.857804]
[1763430869033,0.002,3026.0,3025.9,0.89085201]
[1763430869228,0.002,3026.0,3025.9,1.70306105]
[1763430869949,0.002,3026.0,3025.9,1.67001304]
[1763430870274,0.486,3027.8,3026.0,1.343304]
[1763430870418,0.002,3027.8,3027.1,0.4523]
[1763430870745,0.002,3027.8,3027.2,0.1964]
[1763430871133,0.002,3027.8,3026.4,0.405504]
[1763430871356,0.002,3027.8,3027.1,0.405504]
[1763430871684,0.484,3027.7,3026.4,0.4855]
[1763430871972,0.484,3027.7,3026.6,0.405504]
[1763430872463,0.484,3027.7,3026.8,0.405504]
[1763430872838,0.484,3027.7,3026.1,1.06169264]
[1763430872839,0.002,3027.8,3027.6,0.4523]
[1763430873039,0.002,3027.8,3027.7,0.857804]
[1763430873565,0.002,3027.8,3027.7,1.343304]
[1763430879337,0.002,3027.8,3027.3,0.4566]
[1763430879941,0.002,3027.8,3027.4,0.405504]
[1763430881198,0.002,3027.8,3026.9,0.4566]
[1763430881492,0.4925,3027.7,3026.3,0.4566]
[1763430881850,0.4925,3027.7,3026.4,0.405504]
[1763430882250,0.4925,3027.7,3026.5,0.4566]
[1763430882683,0.4925,3027.7,3026.2,0.4566]
[1763430883179,0.4925,3027.7,3026.1,0.6113]
[1763430883369,0.4925,3027.7,3026.3,0.405504]
[1763430883682,0.4925,3027.7,3026.2,0.4566]
[1763430883886,0.4925,3027.7,3026.1,0.1547]
[1763430883887,0.45674027,3027.7,3026.1,0.1547]
[1763430884183,0.90699264,3027.3,3026.0,0.001]
[1763430884379,0.90699264,3027.6,3026.1,0.1903]
[1763430884972,0.90699264,3027.6,3026.2,0.405504]
[1763430885178,0.90699264,3027.6,3026.4,0.405504]
[1763430885879,0.4925,3027.5,3026.4,0.405504]
[1763430886075,0.4925,3027.5,3026.1,0.1903]
[1763430886491,0.4925,3027.5,3026.2,0.03304474]
[1763430886650,0.4925,3027.5,3026.3,0.405504]
[1763430887066,0.4925,3027.5,3026.2,0.405504]
[1763430888284,0.4925,3027.5,3026.0,0.001]
[1763430888285,0.4925,3027.5,3026.0,0.406504]
[1763430888493,0.4925,3027.5,3026.2,0.405504]
[1763430889586,0.4925,3027.5,3026.0,0.001]
[1763430889794,0.4925,3027.5,3026.0,0.863104]
[1763430889966,0.4925,3027.5,3026.2,0.405504]
[1763430890158,0.002,3027.8,3026.4,0.405504]
[1763430890354,0.4945,3027.8,3026.0,0.001]
[1763430890588,0.4945,3027.8,3026.6,0.405504]
[1763430891056,0.4945,3027.8,3026.0,0.001]
[1763430891057,0.002,3027.8,3026.0,0.001]
[1763430891257,0.002,3027.8,3026.8,0.405504]
[1763430891678,0.002,3027.8,3026.9,0.405504]
[1763430892288,0.002,3027.8,3026.0,0.001]
[1763430892492,0.4925,3027.7,3026.1,0.4566]
[1763430892693,0.4925,3027.7,3026.2,0.405504]
[1763430892992,0.002,3027.8,3026.4,0.405504]
[1763430893179,0.002,3027.8,3027.7,0.4887]
[1763430893380,0.002,3027.8,3027.6,0.1903]
[1763430893381,0.002,3027.8,3026.4,0.595804]
[1763430893588,0.002,3027.8,3026.4,1.052404]
[1763430893783,0.002,3027.8,3026.6,0.405504]
[1763430894284,0.002,3027.8,3026.8,0.405504]
[1763430894285,0.1279,3027.8,3026.8,0.405504]
[1763430894803,0.1279,3027.8,3027.0,0.405504]
[1763430895098,0.4925,3027.7,3027.0,0.405504]
[1763430895806,0.4925,3027.7,3026.4,0.1903]
[1763430895994,0.4925,3027.7,3026.7,0.405504]
[1763430896396,1.39949264,3027.7,3026.4,0.1903]
[1763430896813,0.4925,3027.6,3026.5,0.405504]
[1763430897095,0.4925,3027.6,3026.0,0.001]
[1763430897302,0.4925,3027.6,3026.2,0.405504]
[1763430897482,0.4925,3027.6,3026.1,0.4566]
[1763430897688,0.4925,3027.6,3026.2,0.405504]
[1763430898091,0.4925,3027.6,3026.2,0.862104]
[1763430900391,6.3360572,3027.3,3026.0,0.001]
[1763430900709,0.90699264,3027.2,3026.0,0.001]
[1763430901002,1.39949264,3027.2,3026.0,0.001]
[1763430901170,0.4925,3027.1,3026.0,0.001]
[1763430901504,0.4925,3027.1,3026.1,0.001]
[1763430902627,1.33049264,3026.2,3026.1,0.001]
[1763430902990,1.82299264,3026.2,3026.1,0.001]
[1763430903190,0.44154011,3027.8,3026.1,0.68]
[1763430903191,0.1842,3026.7,3026.1,0.68]
[1763430903419,0.1842,3026.7,3026.1,0.001]
[1763430903605,0.2513,3026.2,3026.1,0.001]
[1763430903928,0.7414,3026.2,3026.1,0.001]
[1763430904299,0.2513,3026.2,3026.1,0.001]
[1763430904625,0.7414,3026.2,3026.1,0.001]
[1763430907014,0.7414,3026.2,3025.8,0.001]
[1763430907224,0.90699264,3026.3,3025.4,0.001]
[1763430907225,7.24304984,3025.5,3025.4,0.001]
[1763430907399,7.52364984,3025.5,3025.4,0.001]
[1763430907727,7.99064984,3025.5,3025.4,0.001]
[1763430909252,1.65459264,3025.5,3025.4,0.001]
[1763430910437,0.90699264,3025.5,3025.4,0.001]
[1763430910622,6.8049572,3026.5,3025.4,0.4813]
[1763430910802,7.71394984,3025.5,3025.4,0.001]
[1763430911342,7.71394984,3025.5,3024.1,0.1849]
[1763430911343,0.90699264,3025.4,3024.1,0.1849]
[1763430911647,0.90699264,3024.9,3024.2,0.479]
[1763430912034,1.09729264,3024.9,3024.2,0.479]
[1763430912205,0.4689,3024.8,3023.9,0.405504]
[1763430912401,0.1903,3024.9,3023.9,0.884504]
[1763430912727,0.90699264,3025.4,3023.9,0.884504]
[1763430912929,0.4689,3025.3,3024.1,0.405504]
[1763430913316,0.4689,3025.3,3024.2,0.1849]
[1763430913717,6.5263572,3025.5,3024.3,0.884504]
[1763430913936,0.1903,3025.5,3024.3,0.884504]
[1763430914159,0.4689,3025.4,3024.3,0.884504]
[1763430914310,0.90699264,3025.3,3024.2,0.1849]
[1763430914814,0.4689,3025.2,3024.2,0.1849]
[1763430915156,0.2746,3024.3,3023.5,0.6649]
[1763430915310,0.4689,3025.2,3023.6,0.03307315]
[1763430915511,0.4689,3025.1,3024.2,0.6652]
[1763430916662,0.2746,3024.3,3023.5,0.6649]
[1763430916938,0.90699264,3024.8,3023.5,0.6649]
[1763430917145,3.894504,3025.9,3023.5,0.001]
[1763430917146,0.90699264,3024.3,3023.5,0.001]
[1763430918712,6.3360572,3024.9,3023.5,0.4704]
[1763430918913,0.90699264,3025.3,3023.6,0.405504]
[1763430919114,0.4641,3025.2,3023.7,0.4694]
[1763430919313,0.90699264,3024.8,3023.7,0.4694]
[1763430919850,1.37109264,3024.8,3023.7,0.4694]
[1763430920347,0.4641,3024.7,3023.7,0.4694]
[1763430921112,0.90699264,3024.8,3023.7,0.4694]
[1763430921515,0.90699264,3024.3,3023.5,0.001]
[1763430921945,0.4641,3024.2,3023.5,0.001]
[1763430922165,0.2793,3023.6,3023.5,0.001]
[1763430922712,0.1871,3023.7,3023.5,0.001]
[1763430922964,0.1871,3024.0,3023.5,0.001]
[1763430924249,0.0046,3023.6,3023.5,0.001]
[1763430924436,0.90699264,3023.8,3023.5,0.001]
[1763430924612,0.90699264,3024.1,3023.5,0.4704]
[1763430924812,0.1871,3024.2,3023.5,0.4704]
[1763430925017,0.405504,3025.2,3024.1,0.6661]
[1763430925018,0.135,3024.9,3024.1,0.6661]
[1763430925426,0.5991,3024.9,3024.0,0.1821]
[1763430925962,0.5991,3024.9,3024.1,0.1888]
[1763430926529,0.4641,3024.8,3023.8,0.6582]
[1763430926725,0.4641,3024.8,3023.9,0.4694]
[1763430928257,0.135,3024.9,3024.0,0.405504]
[1763430928752,0.135,3024.9,3024.1,0.6582]
[1763430929341,0.90699264,3025.6,3024.8,0.484]
[1763430929543,6.8001572,3025.7,3024.8,0.484]
[1763430929745,0.002,3026.2,3025.4,0.6728]
[1763430930065,0.002,3026.2,3025.6,0.484]
[1763430930438,0.4661,3026.2,3025.4,0.1888]
[1763430930638,0.4661,3026.2,3025.1,0.1888]
[1763430931057,0.4661,3026.2,3025.1,0.6582]
[1763430931579,0.4661,3026.2,3024.7,0.4694]
[1763430931872,6.3360572,3025.9,3024.7,0.4694]
[1763430932079,0.90699264,3025.8,3024.7,0.4694]
[1763430932285,1.04839264,3025.8,3024.7,0.4694]
[1763430933160,0.90699264,3025.8,3024.7,0.4694]
[1763430934157,0.4661,3026.2,3024.8,0.405504]
[1763430934475,0.002,3026.2,3025.0,0.405504]
[1763430934990,0.002,3026.2,3025.2,0.405504]
[1763430935193,0.002,3026.2,3025.3,0.4694]
[1763430935391,0.4661,3026.2,3025.3,0.4694]
[1763430935690,0.002,3026.2,3025.3,0.4694]
[1763430935924,0.002,3026.2,3025.1,0.1888]
[1763430935925,0.90899264,3026.2,3025.1,0.1888]
[1763430936092,0.90899264,3026.2,3025.4,0.4825]
[1763430936593,0.90899264,3026.2,3025.1,0.1888]
[1763430936594,0.4545,3026.1,3025.1,0.1888]
[1763430937092,0.4545,3026.1,3025.0,0.1868]
[1763430937472,0.4545,3026.1,3025.0,0.6693]
[1763430937675,0.4545,3026.1,3024.6,0.4825]
[1763430939412,0.4545,3026.1,3024.7,0.405504]
[1763430939789,0.4545,3026.1,3024.7,0.4825]
[1763430943614,0.90899264,3026.2,3024.8,0.405504]
[1763430944224,0.4545,3026.1,3025.0,0.405504]
[1763430944722,0.4545,3026.1,3025.1,0.59595]
[1763430947115,0.90899264,3026.2,3025.1,0.59595]
[1763430947332,0.002,3026.2,3025.2,0.405504]
[1763430947513,0.002,3026.2,3026.1,0.6495]
[1763430947834,0.002,3026.2,3026.1,1.132]
[1763430950506,0.002,3026.2,3026.1,0.4627]
[1763430950834,0.002,3026.2,3026.1,1.132]
[1763430951743,0.002,3026.2,3025.2,0.405504]
[1763430951946,0.002,3026.2,3025.7,0.405504]
[1763430952318,0.002,3026.2,3025.8,0.4825]
[1763430952520,0.002,3026.2,3026.1,0.6495]
[1763430953140,0.002,3026.2,3026.1,1.132]
[1763430953338,0.002,3026.2,3025.7,0.405504]
[1763430953841,0.002,3026.2,3025.8,0.4825]
[1763430955143,0.002,3026.2,3026.1,0.4627]
[1763430955610,0.002,3026.2,3025.8,0.4825]
[1763430956210,0.002,3026.2,3026.1,0.6495]
[1763430956505,0.002,3026.2,3026.1,1.055004]
[1763430956704,0.002,3026.2,3026.1,1.57054983]
[1763430956939,0.002,3026.2,3026.1,1.537504]
[1763430957942,0.002,3026.2,3026.1,1.132]
[1763430959910,0.002,3026.2,3025.7,0.4825]
[1763430960745,0.002,3026.2,3026.1,0.4627]
[1763430961106,0.002,3026.2,3025.7,0.4825]
[1763430961748,0.002,3026.2,3025.4,0.405504]
[1763430961749,0.2989,3025.8,3025.2,0.4825]
[1763430961909,0.4545,3026.1,3025.2,0.77926021]
[1763430962110,0.90699264,3025.9,3025.0,0.001]
[1763430962536,0.647,3025.8,3025.0,0.001]
[1763430963073,0.4545,3025.7,3025.0,0.001]
[1763430963250,0.2936,3025.1,3025.0,0.001]
[1763430963969,0.1925,3025.8,3025.0,0.001]
[1763430964271,0.4545,3025.7,3025.0,0.001]
[1763430964845,0.4545,3025.7,3025.1,0.1868]
[1763430966360,0.4545,3025.7,3025.0,0.001]
[1763430967165,0.1925,3025.8,3025.0,0.001]
[1763430967471,0.6796,3025.8,3025.0,0.001]
[1763430968666,0.6796,3025.8,3025.1,0.1907]
[1763430968846,0.002,3026.6,3025.1,0.6672]
[1763430968847,0.1959,3026.1,3025.1,0.6672]
[1763430969048,0.1959,3026.1,3025.2,0.4765]
[1763430969366,0.683,3026.1,3025.2,0.4765]
[1763430969576,0.683,3026.1,3025.1,0.1907]
[1763430969780,0.4871,3026.0,3025.1,0.1907]
[1763430970163,0.4871,3026.0,3025.1,0.6672]
[1763430971755,0.4871,3026.4,3025.2,0.882004]
[1763430971971,0.4871,3026.4,3025.3,0.4765]
[1763430973242,0.90699264,3026.5,3025.3,0.4765]
[1763430973450,0.90699264,3026.0,3025.0,0.001]
[1763430973950,0.683,3025.9,3025.0,0.001]
[1763430974150,0.683,3025.9,3025.1,0.1907]
[1763430974362,0.1959,3025.9,3025.1,0.1907]
[1763430974548,0.1959,3025.9,3025.2,0.4765]
[1763430974742,0.1959,3025.9,3025.1,0.1907]
[1763430974743,0.683,3025.9,3025.1,0.1907]
[1763430974948,0.683,3025.9,3025.0,0.001]
[1763430975185,0.4871,3025.8,3025.0,0.001]
[1763430975484,0.4871,3025.8,3025.1,0.1907]
[1763430976348,0.1959,3025.9,3025.1,0.1907]
[1763430976550,0.002,3026.0,3025.2,0.4765]
[1763430976993,0.002,3026.0,3025.3,0.405504]
[1763430977492,0.002,3026.0,3025.5,0.405504]
[1763430977856,0.002,3026.0,3025.5,0.882004]
[1763430978063,0.002,3026.0,3025.9,0.4878]
[1763430978369,0.002,3026.0,3025.9,1.369804]
[1763430978690,0.002,3026.0,3025.9,1.74384961]
[1763430979274,0.002,3026.0,3025.9,1.77689762]
[1763430979594,0.002,3026.0,3025.9,4.11450168]
[1763430980091,0.002,3026.0,3025.9,1.74384961]
[1763430980292,0.002,3026.0,3025.9,4.11450168]
[1763430980607,0.002,3026.0,3025.9,1.74384961]
[1763430981063,0.002,3026.0,3025.9,1.369804]
[1763430981465,0.002,3026.0,3025.9,0.893304]
[1763430981873,0.002,3026.0,3025.9,1.354704]
[1763430982871,0.002,3026.0,3025.9,0.9492]
[1763430983263,0.002,3026.0,3025.9,0.4878]
[1763430984896,0.002,3026.0,3025.6,0.866904]
[1763430985102,0.002,3026.0,3025.6,0.405504]
[1763430985287,0.002,3026.0,3025.9,0.466]
[1763430987501,0.259,3026.0,3025.6,0.405504]
[1763430987700,0.259,3026.0,3025.4,0.405504]
[1763430988004,0.1988,3025.9,3025.1,0.1907]
[1763430988163,0.1988,3025.9,3025.1,0.6521]
[1763430988367,0.002,3026.0,3025.2,0.30237521]
[1763430988567,0.002,3026.0,3025.2,0.866904]
[1763430988768,0.002,3026.0,3025.2,0.4614]
[1763430988966,0.4915,3026.0,3025.2,0.4614]
[1763430989903,0.4915,3026.0,3025.1,0.1907]
[1763430990994,0.4915,3026.0,3025.0,0.406504]
[1763430991193,0.4915,3026.0,3025.1,0.1857]
[1763430991913,0.4915,3026.0,3025.0,0.4624]
[1763430993620,0.4915,3026.0,3025.1,0.1857]
[1763430994125,0.002,3026.0,3025.2,0.49445566]
[1763430994422,0.1959,3025.9,3025.2,0.405504]
[1763430995424,0.6854,3025.9,3025.2,0.405504]
[1763430995822,0.6854,3025.9,3025.1,0.1857]
[1763430996053,0.6854,3025.9,3025.0,0.001]
[1763430996054,0.4793,3025.8,3025.0,0.001]
[1763430996221,0.4793,3025.8,3025.0,0.27871561]
[1763430996423,0.4793,3025.8,3025.1,0.1946]
[1763430996811,0.1959,3025.9,3025.1,0.1946]
[1763430997016,0.90899264,3026.0,3025.2,0.4583]
[1763430997525,0.90899264,3026.0,3025.1,0.1946]
[1763430997526,0.4793,3025.9,3025.1,0.1946]
[1763430998513,0.4793,3025.9,3025.0,0.4593]
[1763430998795,0.4793,3025.9,3025.1,0.1946]
[1763431000227,0.4793,3025.9,3025.0,0.001]
[1763431000730,0.4793,3025.9,3025.1,0.1946]
[1763431002098,0.002,3026.0,3025.2,0.405504]
[1763431002317,0.002,3026.0,3025.8,0.4764]
[1763431002515,0.002,3026.0,3025.4,0.405504]
[1763431002951,0.002,3026.0,3025.4,0.863804]
[1763431003444,0.002,3026.0,3025.4,0.405504]
[1763431003644,0.002,3026.0,3025.2,0.405504]
[1763431003645,0.1974,3025.9,3025.2,0.405504]
[1763431003815,0.1974,3025.9,3025.0,0.001]
[1763431004016,0.4793,3025.8,3025.0,0.001]
[1763431004436,0.90699264,3025.5,3025.0,0.001]
[1763431004749,7.52234794,3025.1,3025.0,0.001]
[1763431004951,7.52234794,3025.1,3024.6,0.001]
[1763431004952,0.2022,3024.8,3024.6,0.001]
[1763431005152,0.2426,3024.7,3023.5,0.1946]
[1763431005358,7.26174794,3024.4,3023.5,0.1946]
[1763431005645,7.74104794,3024.4,3023.5,0.1946]
[1763431006848,0.90699264,3024.4,3024.1,0.1946]
[1763431007041,1.15219264,3024.4,3023.8,0.4583]
[1763431007555,1.15219264,3024.4,3023.5,0.405504]
[1763431007556,7.97894794,3024.4,3023.5,0.405504]
[1763431007757,7.97894794,3024.4,3023.6,0.4593]
[1763431007939,7.97894794,3024.4,3023.6,0.001]
[1763431008458,7.50194794,3024.4,3023.6,0.001]
[1763431008675,7.50194794,3024.4,3023.7,0.4583]
[1763431009033,7.97894794,3024.4,3023.7,0.4583]
[1763431009239,7.97894794,3024.4,3023.6,0.001]
[1763431010650,7.50194794,3024.4,3023.7,0.4583]
[1763431011161,7.97894794,3024.4,3023.7,0.4583]
[1763431011642,7.50194794,3024.4,3023.7,0.4583]
[1763431011838,7.50194794,3024.4,3023.6,0.001]
[1763431011839,0.90699264,3024.4,3023.6,0.001]
[1763431012043,0.90699264,3024.4,3024.3,0.4774]
[1763431013040,0.4793,3025.3,3024.3,0.9357]
[1763431013272,0.4793,3025.3,3024.7,0.4764]
[1763431013476,6.3497553,3025.4,3024.8,0.03306003]
[1763431013769,0.4793,3025.6,3024.7,0.9347]
[1763431014140,0.4793,3025.6,3024.7,0.4764]
[1763431014769,0.90699264,3025.3,3024.7,0.4764]
[1763431015874,0.90699264,3025.3,3024.3,0.001]
[1763431015875,1.38629264,3025.3,3024.4,0.405504]